bitfinex-derivatives/quotes_ETHF0:USTF0_20240901
["timestamp","ask_amount","ask_price","bid_price","bid_amount"]
[1725232150429,1.03293,2420.2,2419.1,0.6524]
[1725232150721,1.11594,2419.8,2419.4,0.00620797]
[1725232151024,3.2078,2419.8,2419.7,0.41325]
[1725232151218,0.7027,2420.3,2419.5,9.60950127]
[1725232151417,3.2078,2420.4,2419.6,3.2078]
[1725232151726,3.2078,2420.4,2419.7,5.27347476]
[1725232152023,3.2078,2420.4,2420.0,0.41319]
[1725232152222,3.2078,2420.4,2420.1,0.41317]
[1725232152426,3.2078,2420.4,2420.3,0.41315]
[1725232152614,3.2078,2420.4,2420.2,0.41316]
[1725232153728,3.2078,2420.4,2420.2,0.41315]
[1725232153920,0.7027,2420.8,2420.3,0.41315]
[1725232154229,0.7027,2420.8,2420.0,5.39263545]
[1725232154426,0.7027,2420.8,2420.3,0.41314]
[1725232154825,0.00620797,2420.9,2420.7,0.41307]
[1725232155031,0.00620797,2420.9,2420.8,0.41306]
[1725232155425,0.00620797,2420.9,2420.8,4.54346]
[1725232156331,3.2078,2422.4,2421.6,0.41291]
[1725232156627,0.6547,2423.0,2421.7,3.97]
[1725232156827,0.41271,2422.9,2421.8,0.41289]
[1725232157131,3.2078,2422.8,2421.5,0.20230031]
[1725232157318,3.62058,2422.5,2421.4,7.1778]
[1725232157524,0.70899502,2422.4,2421.9,0.00619502]
[1725232157921,4.83779502,2422.4,2421.9,0.00619502]
[1725232158122,0.70899502,2422.4,2421.9,0.00619502]
[1725232158523,3.91679502,2422.4,2421.9,0.00619502]
[1725232159541,0.41281,2422.3,2421.9,0.00619502]
[1725232159718,3.2078,2422.0,2421.9,0.00619502]
[1725232160133,7.3366,2422.0,2421.9,0.00619502]
[1725232160425,1.12178502,2422.4,2421.9,0.00619502]
[1725232160426,3.2078,2422.3,2421.9,0.00619502]
[1725232162725,3.2078,2422.0,2421.9,0.00619502]
[1725232162930,3.21399502,2422.4,2421.9,0.00619502]
[1725232163731,3.2078,2422.1,2421.9,0.00619502]
[1725232164240,3.21399502,2422.4,2421.9,0.00619502]
[1725232166134,3.21399502,2422.4,2422.0,0.41285]
[1725232166333,3.21399502,2422.4,2421.9,0.41906502]
[1725232166730,3.21399502,2422.4,2422.0,0.41286]
[1725232166930,3.21399502,2422.4,2421.9,0.00619502]
[1725232167240,3.2078,2422.1,2421.9,0.00619502]
[1725232168543,0.00619502,2422.4,2421.9,0.00619502]
[1725232168544,3.21399502,2422.4,2421.9,0.00619502]
[1725232168837,3.2078,2422.1,2421.9,0.00619502]
[1725232170039,0.00619502,2422.4,2421.9,0.00619502]
[1725232170040,3.21399502,2422.4,2421.9,0.00619502]
[1725232170226,3.21399502,2422.4,2422.0,0.41286]
[1725232170430,3.21399502,2422.4,2422.2,0.41282]
[1725232170732,3.21399502,2422.4,2421.9,0.00619502]
[1725232170733,0.00619502,2422.4,2422.0,5.48387745]
[1725232170937,0.00619502,2422.4,2422.0,5.89671745]
[1725232171230,0.00619502,2422.4,2422.1,0.41283]
[1725232171432,0.00619502,2422.4,2422.0,5.89672745]
[1725232171631,0.00619502,2422.4,2421.9,0.41906502]
[1725232171632,3.21399502,2422.4,2421.9,0.41906502]
[1725232171832,3.21399502,2422.4,2421.9,0.00619502]
[1725232171833,3.2078,2422.1,2421.9,0.00619502]
[1725232172039,3.2078,2422.1,2421.9,0.41906502]
[1725232172235,3.2078,2422.1,2421.9,0.00619502]
[1725232173139,4.1288,2422.0,2421.9,0.00619502]
[1725232173332,3.2078,2422.1,2421.9,0.00619502]
[1725232173534,0.00619502,2422.4,2421.9,0.41905502]
[1725232173931,0.00619502,2422.4,2421.9,0.00619502]
[1725232174135,3.2078,2422.0,2421.9,0.00619502]
[1725232174433,0.41285,2422.1,2421.9,0.00619502]
[1725232174632,0.41285,2422.1,2420.8,4.3836]
[1725232174633,9.2078,2422.1,2420.8,4.3836]
[1725232174835,3.2078,2421.2,2420.5,5.0838]
[1725232175039,3.2078,2421.2,2421.0,0.41302]
[1725232175328,3.2078,2421.2,2420.6,8.5150306]
[1725232175527,3.2078,2421.5,2420.6,3.2078]
[1725232175729,3.2078,2421.1,2420.8,0.00619502]
[1725232175936,0.00619502,2421.3,2420.8,0.00619502]
[1725232175937,3.2078,2421.0,2420.8,0.00619502]
[1725232176434,3.2078,2420.9,2420.8,0.00619502]
[1725232176938,7.3382,2420.9,2420.8,0.00619502]
[1725232177833,3.2078,2420.9,2420.8,0.00619502]
[1725232178028,0.7168,2421.2,2420.8,4.13659502]
[1725232178237,0.00619502,2421.3,2420.8,0.00619502]
[1725232178442,0.00619502,2421.3,2420.8,0.41924502]
[1725232178940,0.00619502,2421.3,2420.9,5.51581668]
[1725232179238,0.00619502,2421.3,2420.8,0.00619502]
[1725232179239,0.00619502,2421.3,2420.8,0.41924502]
[1725232179441,0.00619502,2421.3,2420.9,0.41304]
[1725232179630,0.00619502,2421.3,2420.8,0.00619502]
[1725232179631,3.2078,2421.1,2420.8,0.00619502]
[1725232179941,3.2078,2421.1,2420.8,0.41924502]
[1725232180148,3.2078,2421.1,2420.9,0.41303]
[1725232180337,3.2078,2421.1,2420.8,0.00619502]
[1725232180733,0.00619502,2421.3,2420.8,0.00619502]
[1725232181142,0.00619502,2421.3,2421.0,0.41302]
[1725232181443,0.00619502,2421.3,2420.8,0.41924502]
[1725232181643,3.2078,2421.1,2420.8,0.00619502]
[1725232181943,3.62082,2421.1,2420.8,0.00619502]
[1725232182145,0.41304,2420.9,2420.8,0.00619502]
[1725232182443,9.93533911,2421.0,2420.8,0.00619502]
[1725232182645,0.41304,2420.9,2420.8,0.00619502]
[1725232182841,0.6715,2421.0,2420.8,0.00619502]
[1725232183049,3.2078,2421.1,2420.8,0.00619502]
[1725232183242,7.3382,2421.1,2420.8,0.00619502]
[1725232183449,7.75121,2421.1,2420.8,0.00619502]
[1725232183748,0.41304,2420.9,2420.8,0.00619502]
[1725232184245,4.1304,2420.9,2420.8,0.00619502]
[1725232184743,10.54344,2420.9,2420.8,0.00619502]
[1725232185443,4.54344,2420.9,2420.8,0.00619502]
[1725232185641,10.54344,2420.9,2420.8,0.00619502]
[1725232186348,10.54344,2420.9,2419.8,3.62103]
[1725232186349,10.1304,2420.9,2419.8,3.62103]
[1725232186549,3.2078,2420.2,2420.0,0.41319]
[1725232186745,3.2078,2420.2,2420.1,0.41318]
[1725232186953,0.4131,2420.6,2420.1,0.41318]
[1725232187339,3.62091,2420.5,2420.1,0.00619502]
[1725232187548,3.2078,2420.3,2420.1,0.00619502]
[1725232187747,3.2078,2420.3,2420.1,0.41937502]
[1725232188239,3.2078,2420.3,2420.2,0.41316]
[1725232188444,3.2078,2420.7,2420.1,0.00619502]
[1725232188745,3.2078,2420.7,2420.4,0.41312]
[1725232189249,3.2078,2420.6,2420.1,0.00619502]
[1725232189450,3.2078,2420.6,2420.2,0.41315]
[1725232189650,3.2078,2420.5,2420.2,0.41315]
[1725232189860,3.2078,2420.5,2420.3,0.41314]
[1725232190045,3.2078,2420.8,2420.4,0.41313]
[1725232191145,3.2078,2420.8,2420.5,0.4131]
[1725232191350,3.2078,2420.8,2420.4,0.41312]
[1725232191851,3.2078,2420.8,2420.2,0.6479]
[1725232192248,3.2078,2420.8,2420.6,0.41309]
[1725232193245,3.2078,2420.8,2420.7,0.41308]
[1725232193450,3.2078,2420.8,2420.5,0.4131]
[1725232194544,3.62087,2420.8,2420.3,0.41313]
[1725232194744,0.6937,2421.1,2420.4,0.41313]
[1725232194745,3.2078,2420.5,2420.4,0.41313]
[1725232197259,3.2078,2421.0,2420.4,4.1312]
[1725232197468,3.2078,2421.0,2420.8,0.41306]
[1725232198057,3.2078,2421.0,2420.6,0.41308]
[1725232198251,3.2078,2421.0,2420.2,3.8557]
[1725232198252,3.2078,2420.7,2420.5,0.4131]
[1725232198445,3.2078,2420.6,2420.5,0.4131]
[1725232198754,3.2078,2420.6,2420.2,0.6479]
[1725232198755,3.2078,2420.6,2420.3,0.41314]
[1725232199872,7.7521,2420.6,2420.1,0.41937502]
[1725232200162,3.2078,2420.6,2420.1,0.00619502]
[1725232200459,3.2078,2421.0,2420.1,3.81619502]
[1725232200758,3.2078,2420.4,2420.1,0.00619502]
[1725232201757,3.62094,2420.4,2420.1,0.00619502]
[1725232201960,0.41316,2420.2,2420.1,0.00619502]
[1725232202262,0.41316,2420.2,2419.2,0.41332]
[1725232202263,4.94574892,2420.2,2419.2,0.41332]
[1725232202456,3.2078,2419.7,2419.2,0.41332]
[1725232202758,3.2078,2419.4,2419.0,0.4136]
[1725232203257,0.00619502,2419.4,2419.3,0.41332]
[1725232203655,0.00619502,2419.4,2419.2,0.41333]
[1725232203961,0.00619502,2419.4,2419.3,0.41332]
[1725232204259,0.00619502,2419.4,2419.2,0.41333]
[1725232204455,0.00619502,2419.4,2419.0,4.22774304]
[1725232204653,3.21399502,2419.4,2419.0,0.41774304]
[1725232204851,3.2078,2419.2,2419.0,0.41774304]
[1725232205054,3.2078,2419.2,2419.0,0.00414304]
[1725232205656,3.62114,2419.2,2419.0,0.00414304]
[1725232206259,0.41335,2419.1,2419.0,0.00414304]
[1725232206563,3.2078,2419.2,2419.0,0.00414304]
[1725232206754,3.62114,2419.2,2419.0,0.00414304]
[1725232207063,3.2078,2419.2,2419.0,0.00414304]
[1725232207467,3.2078,2419.2,2419.0,4.13774304]
[1725232207961,0.00619502,2419.4,2419.0,3.81414304]
[1725232208153,0.00619502,2419.4,2419.0,7.94774304]
[1725232208465,0.00619502,2419.4,2419.0,0.00414304]
[1725232208666,3.2078,2419.2,2419.0,0.00414304]
[1725232208853,0.00619502,2419.4,2419.0,0.41750304]
[1725232209359,0.00619502,2419.4,2419.0,0.00414304]
[1725232209360,3.2078,2419.1,2419.0,0.00414304]
[1725232210560,0.00619502,2419.4,2419.3,0.41332]
[1725232210749,0.00619502,2419.4,2419.3,4.54692]
[1725232211354,0.00619502,2419.4,2419.1,1.29]
[1725232211355,0.00619502,2419.4,2419.1,1.70334]
[1725232212963,0.00619502,2419.4,2419.1,1.29]
[1725232213263,0.00619502,2419.4,2419.2,4.54692]
[1725232213563,0.00619502,2419.4,2419.0,0.00414304]
[1725232213564,3.21399502,2419.4,2419.0,0.00414304]
[1725232213864,3.62115,2419.1,2419.0,0.00414304]
[1725232214064,7.75475,2419.1,2419.0,0.00414304]
[1725232214258,3.2078,2419.1,2419.0,0.00414304]
[1725232215063,7.75475,2419.1,2419.0,0.00414304]
[1725232216057,0.41342,2418.8,2418.2,4.2236]
[1725232216259,3.2078,2418.4,2418.2,0.8271]
[1725232216556,3.2078,2419.2,2418.2,4.2236]
[1725232216763,3.2078,2419.2,2418.6,0.41343]
[1725232216962,3.2078,2419.2,2418.2,3.6214]
[1725232216963,3.2078,2418.9,2418.2,4.6371]
[1725232217157,3.2078,2418.5,2418.3,0.41348]
[1725232217555,3.2078,2418.5,2418.3,4.1352]
[1725232217864,3.2078,2418.4,2418.1,0.4136]
[1725232218258,3.2078,2418.4,2418.1,4.5488]
[1725232218764,0.88176839,2418.4,2418.2,0.44080317]
[1725232218962,5.19999,2418.3,2418.2,0.44080317]
[1725232219265,0.00619502,2418.1,2417.5,0.4136]
[1725232219455,0.00619502,2418.1,2417.1,1.05619]
[1725232219456,3.2078,2417.8,2417.1,1.05619]
[1725232219657,3.2078,2417.5,2417.2,0.4144]
[1725232219865,0.00619502,2418.1,2417.2,0.4144]
[1725232219866,3.2078,2417.9,2417.2,0.4144]
[1725232220060,0.41357,2417.8,2417.3,0.41365]
[1725232220260,3.2078,2417.6,2417.2,0.4144]
[1725232220466,0.88085774,2417.5,2417.3,1.12884272]
[1725232220667,3.62143,2417.5,2417.3,1.12884272]
[1725232220866,2.82003329,2417.5,2417.4,1.12884272]
[1725232221066,2.82003329,2417.5,2417.0,0.4144]
[1725232221262,0.6815,2417.5,2417.0,0.4144]
[1725232221469,0.41365,2417.4,2417.0,0.4144]
[1725232221771,0.00619502,2418.1,2417.1,16.57397156]
[1725232221968,0.00619502,2418.1,2417.6,3.2078]
[1725232222168,0.00619502,2418.1,2417.8,0.41357]
[1725232222473,3.2078,2418.6,2417.7,0.41359]
[1725232222667,3.2078,2418.6,2417.6,3.2078]
[1725232222868,0.41352,2418.1,2417.6,3.2078]
[1725232223073,3.2078,2418.6,2417.6,3.2078]
[1725232223074,0.41351,2418.2,2417.6,3.6214]
[1725232223276,3.6213,2418.3,2417.7,0.41358]
[1725232223460,0.41353,2418.1,2417.8,0.00619502]
[1725232223666,0.41354,2418.0,2417.8,0.00619502]
[1725232223862,0.41356,2417.9,2417.8,0.00619502]
[1725232224071,3.21399502,2418.2,2417.8,0.00619502]
[1725232224072,0.41355,2418.0,2417.8,0.00619502]
[1725232224370,0.41353,2418.1,2417.8,0.00619502]
[1725232225469,0.41354,2418.1,2417.8,0.00619502]
[1725232226062,0.41970502,2418.2,2417.8,0.00619502]
[1725232226277,0.41352,2418.1,2417.8,0.00619502]
[1725232226467,3.62750502,2418.2,2417.8,0.00619502]
[1725232226667,0.00619502,2418.2,2417.8,0.00619502]
[1725232227376,0.00619502,2418.2,2417.9,3.2078]
[1725232227572,0.00619502,2418.2,2418.1,0.41352]
[1725232227774,0.00619502,2418.2,2418.0,0.41353]
[1725232227973,0.00619502,2418.2,2418.1,0.41352]
[1725232228375,0.00619502,2418.2,2418.1,4.54872]
[1725232228571,0.6892,2418.8,2418.5,0.41345]
[1725232228767,7.43112,2419.3,2418.7,0.41342]
[1725232228971,0.41331,2419.4,2418.7,3.2078]
[1725232229175,0.41333,2419.3,2418.7,3.2078]
[1725232229371,8.9931,2419.6,2418.7,3.2078]
[1725232229372,0.41334,2419.2,2418.7,3.2078]
[1725232229676,0.00619502,2419.2,2418.7,3.62122]
[1725232229878,0.00619502,2419.2,2418.8,0.41339]
[1725232230076,0.00619502,2419.2,2418.7,3.62121]
[1725232230278,0.00619502,2419.2,2418.7,3.2078]
[1725232230479,0.00619502,2419.2,2418.8,0.41339]
[1725232230673,0.00619502,2419.2,2418.7,3.2078]
[1725232230674,0.00619502,2419.2,2418.7,3.62121]
[1725232230878,0.41954502,2419.2,2418.7,3.2078]
[1725232231077,0.41335,2419.1,2418.7,3.2078]
[1725232231279,0.00619502,2419.2,2418.4,3.2078]
[1725232231477,0.41342,2418.7,2418.4,3.2078]
[1725232231680,0.41345,2418.5,2418.4,3.2078]
[1725232231874,7.0178,2418.8,2418.4,3.2078]
[1725232231875,1.06245,2418.6,2418.4,3.2078]
[1725232232080,3.81,2418.5,2417.9,0.6282]
[1725232232278,4.22346,2418.5,2417.9,1.04175]
[1725232232886,7.0178,2418.5,2417.8,3.21399502]
[1725232233078,0.41355,2418.0,2417.8,3.21399502]
[1725232233279,3.81,2418.2,2417.8,3.21399502]
[1725232233478,4.22352,2418.2,2417.8,3.21399502]
[1725232234086,3.81,2418.4,2417.8,3.21399502]
[1725232234279,3.81,2418.4,2417.8,3.62755502]
[1725232234599,4.22347,2418.4,2417.8,3.21399502]
[1725232234792,3.81,2418.4,2417.8,3.21399502]
[1725232234994,3.2078,2418.5,2418.0,0.41353]
[1725232235192,0.41345,2418.5,2417.9,0.4136]
[1725232235399,0.41347,2418.4,2417.9,0.4136]
[1725232236301,0.41347,2418.4,2417.8,3.21399502]
[1725232236302,3.2078,2418.3,2417.8,3.21399502]
[1725232236497,0.41353,2418.1,2417.8,3.21399502]
[1725232237206,0.41351,2418.2,2417.8,0.00619502]
[1725232237501,3.81,2418.2,2417.8,0.00619502]
[1725232237693,0.41356,2417.9,2417.8,0.00619502]
[1725232237890,4.22356,2417.9,2417.8,0.00619502]
[1725232238095,13.946,2417.9,2417.2,0.41367]
[1725232238297,3.81,2417.9,2417.4,3.2078]
[1725232238595,0.41361,2417.7,2417.1,4.03509]
[1725232238892,0.41353,2418.1,2417.5,0.41361]
[1725232239095,0.00619502,2417.6,2417.4,3.62143]
[1725232239295,0.00619502,2417.6,2417.4,3.2078]
[1725232240008,0.41362,2417.5,2417.4,3.2078]
[1725232240304,4.55042,2417.5,2417.4,3.2078]
[1725232240494,4.55042,2417.5,2417.2,0.00619502]
[1725232240495,0.41366,2417.3,2417.2,0.00619502]
[1725232241002,14.36046,2417.3,2417.2,0.00619502]
[1725232241503,0.41376,2416.7,2416.6,3.2078]
[1725232241898,4.55136,2416.7,2416.6,3.2078]
[1725232242201,4.55136,2416.7,2416.0,1.3623]
[1725232242202,0.4138,2416.5,2416.0,1.3623]
[1725232242404,0.6482,2416.8,2416.1,3.2078]
[1725232242708,0.6482,2416.8,2416.5,3.2078]
[1725232242709,0.41375,2416.8,2416.5,3.2078]
[1725232243003,4.22374,2416.9,2416.5,3.2078]
[1725232243307,0.4137,2417.1,2416.5,3.2078]
[1725232244404,0.41375,2416.8,2416.5,3.2078]
[1725232245105,0.41376,2416.7,2416.5,3.2078]
[1725232245306,0.41378,2416.6,2416.5,3.2078]
[1725232245504,3.81,2416.9,2416.0,4.98398]
[1725232245692,0.41377,2416.7,2416.0,4.98398]
[1725232246099,0.41374,2416.9,2416.3,3.2078]
[1725232246402,4.4582,2417.2,2416.3,3.2078]
[1725232246706,0.4137,2417.1,2416.4,0.4138]
[1725232247006,0.41372,2417.0,2416.4,0.4138]
[1725232247208,4.4582,2417.2,2416.6,3.2078]
[1725232247503,4.87188,2417.2,2416.6,3.2078]
[1725232247702,3.81,2416.9,2416.2,3.2078]
[1725232247908,0.4138,2416.5,2416.0,1.3623]
[1725232248206,1.68242,2417.2,2415.9,3.2078]
[1725232248207,0.41384,2416.3,2415.9,3.2078]
[1725232248409,0.41384,2416.3,2415.7,0.41393]
[1725232248410,0.41385,2416.2,2415.7,0.41393]
[1725232248706,0.00620797,2416.3,2415.9,3.62169]
[1725232249101,0.00620797,2416.3,2415.9,3.2078]
[1725232249310,0.41388,2416.0,2415.9,3.2078]
[1725232249505,3.81620797,2416.3,2415.9,3.2078]
[1725232249711,3.81,2416.1,2415.6,0.4144]
[1725232249897,0.41389,2416.0,2415.4,0.41398]
[1725232250100,3.81,2416.1,2415.3,3.2078]
[1725232250600,0.41392,2415.8,2415.3,3.2078]
[1725232251003,0.41392,2415.8,2415.3,3.6218]
[1725232251200,3.81,2416.1,2415.3,3.62179]
[1725232251404,3.81,2415.4,2414.7,3.2078]
[1725232251609,4.84499,2415.4,2414.3,3.2078]
[1725232251801,0.41407,2415.0,2414.4,0.41414]
[1725232251999,0.00620797,2415.1,2414.5,0.6325]
[1725232252204,0.00620797,2415.1,2414.5,1.04663]
[1725232252404,3.81,2414.8,2414.2,3.2078]
[1725232252608,3.81,2414.8,2413.8,0.6325]
[1725232252609,0.41422,2414.1,2413.8,0.6325]
[1725232252805,0.41423,2414.0,2413.8,0.6325]
[1725232253111,3.81,2414.1,2413.6,0.6355]
[1725232253313,7.0178,2413.8,2413.1,0.6325]
[1725232253611,0.41432,2413.5,2413.1,0.6325]
[1725232253800,0.00620797,2413.7,2413.1,0.6325]
[1725232254002,0.00620797,2413.7,2413.4,0.41432]
[1725232254408,0.00620797,2413.7,2413.3,3.2078]
[1725232254616,0.00620797,2413.7,2413.6,3.62209]
[1725232254911,0.00620797,2413.7,2413.6,7.76529]
[1725232255110,0.00620797,2413.7,2413.6,13.76529]
[1725232256008,0.00620797,2413.7,2413.4,0.4144]
[1725232256206,0.00620797,2413.7,2413.6,0.41429]
[1725232256402,1.03504,2415.3,2413.6,0.41429]
[1725232256403,3.81,2415.0,2413.7,0.00620797]
[1725232256607,3.81,2415.0,2413.9,3.2078]
[1725232256909,3.81,2415.0,2413.7,0.69680797]
[1725232256910,8.64060069,2415.0,2414.3,0.41417]
[1725232257219,8.64060069,2415.0,2414.0,0.6925]
[1725232257220,3.81,2415.0,2414.5,3.2078]
[1725232257509,0.00620797,2415.0,2414.1,8.64702743]
[1725232257715,0.00620797,2415.0,2414.4,0.41415]
[1725232257913,0.42025797,2415.0,2414.3,0.41417]
[1725232258105,0.42027797,2415.0,2414.2,0.41419]
[1725232258308,3.81,2414.9,2414.3,0.41417]
[1725232258610,3.81,2414.9,2414.1,3.2078]
[1725232259012,0.4141,2414.8,2414.1,3.622]
[1725232259315,0.41426,2413.8,2413.7,0.00620797]
[1725232259510,3.2078,2413.8,2413.7,0.00620797]
[1725232259712,1.2881,2414.7,2413.7,0.42047797]
[1725232259713,3.62198,2414.3,2413.7,0.42047797]
[1725232260018,3.62198,2414.3,2413.7,0.00620797]
[1725232260019,0.41419,2414.2,2413.7,0.00620797]
[1725232260314,0.4142,2414.2,2413.7,0.00620797]
[1725232260504,0.41421,2414.1,2413.7,0.00620797]
[1725232261313,0.41426,2413.8,2413.7,0.00620797]
[1725232261513,4.55746,2413.8,2413.7,0.00620797]
[1725232261720,10.55746,2413.8,2413.7,0.00620797]
[1725232261919,4.55746,2413.8,2413.7,0.00620797]
[1725232262123,10.55746,2413.8,2413.7,7.97e-06]
[1725232262419,9.07129836,2413.8,2413.7,7.97e-06]
[1725232262617,0.41425,2413.9,2413.7,7.97e-06]
[1725232262926,0.41426,2413.8,2413.7,7.97e-06]
[1725232263128,7.76526,2413.8,2413.7,7.97e-06]
[1725232263313,19.31474836,2413.8,2413.7,7.97e-06]
[1725232263625,18.27909836,2413.8,2413.7,7.97e-06]
[1725232263827,13.76526,2413.8,2413.7,7.97e-06]
[1725232264123,7.76526,2413.8,2413.7,7.97e-06]
[1725232264418,18.49583875,2413.8,2413.7,7.97e-06]
[1725232264619,19.53148875,2413.8,2413.7,7.97e-06]
[1725232265224,18.69597875,2413.8,2412.2,0.4144]
[1725232265415,0.41451,2412.4,2412.1,0.4152]
[1725232265722,3.62226,2412.7,2412.2,0.41453]
[1725232265922,3.2078,2412.7,2412.1,3.623]
[1725232266324,0.41452,2412.3,2412.1,3.2078]
[1725232266625,0.00620797,2412.6,2411.9,0.6816]
[1725232266918,0.42067797,2412.6,2412.0,0.41456]
[1725232267123,0.42067797,2412.6,2412.0,0.41457]
[1725232267323,0.00620797,2412.6,2411.9,3.8894]
[1725232267514,0.00620797,2412.6,2412.2,3.2078]
[1725232267715,3.98,2413.3,2412.5,3.2078]
[1725232267716,3.2078,2413.3,2412.5,3.2078]
[1725232267918,3.2078,2413.3,2412.1,5.46745217]
[1725232267919,0.41436,2413.2,2412.6,4.96006]
[1725232268113,3.2078,2413.3,2412.6,4.96006]
[1725232268424,3.2078,2413.3,2412.6,4.5456]
[1725232268913,0.00620797,2413.2,2413.1,0.41438]
[1725232269115,0.41423,2414.0,2413.4,0.41431]
[1725232269312,0.41423,2414.0,2413.5,3.2078]
[1725232269611,0.4142,2414.2,2413.5,3.2078]
[1725232269816,3.2078,2414.4,2413.8,0.41425]
[1725232270119,0.00620797,2414.3,2413.6,6.6179874]
[1725232270321,0.00620797,2414.3,2413.5,3.2078]
[1725232270322,3.2078,2414.0,2413.5,3.2078]
[1725232270524,3.2078,2413.7,2412.9,3.2078]
[1725232270722,0.41438,2413.1,2412.9,3.2078]
[1725232271027,0.41437,2413.2,2412.9,3.2078]
[1725232271224,3.98,2413.3,2412.8,0.6594]
[1725232271414,0.41439,2413.1,2412.8,0.6594]
[1725232271618,4.39435,2413.3,2412.8,0.6594]
[1725232271824,3.2078,2413.7,2413.1,0.41437]
[1725232272016,3.2078,2413.7,2413.0,3.62219]
[1725232272225,3.2078,2413.7,2412.9,3.2078]
[1725232272525,3.2078,2413.7,2413.5,0.41429]
[1725232272731,0.41422,2414.1,2413.5,4.1432]
[1725232272917,0.41431,2413.5,2413.2,3.2078]
[1725232273119,0.41431,2413.5,2412.1,3.2078]
[1725232273120,3.2078,2413.4,2412.1,3.2078]
[1725232273321,0.41443,2412.8,2412.1,3.623]
[1725232273519,0.41443,2412.8,2411.7,0.90420904]
[1725232273520,0.41443,2412.8,2412.0,0.4152]
[1725232273721,0.41442,2412.9,2412.0,0.4152]
[1725232273928,0.41442,2412.9,2412.2,3.62233]
[1725232274123,7.19400797,2413.0,2412.2,3.2078]
[1725232274323,0.41443,2412.8,2412.2,3.2078]
[1725232274526,8.23002797,2413.0,2412.2,3.623]
[1725232274527,0.42060797,2413.0,2412.2,3.623]
[1725232274729,0.41442,2412.9,2412.2,4.03752]
[1725232275025,3.21400797,2413.0,2412.5,0.41447]
[1725232275220,0.41443,2412.8,2412.4,3.2078]
[1725232275416,0.41454,2412.2,2411.9,3.2078]
[1725232275831,0.41454,2412.2,2410.8,1.0369]
[1725232275832,11.3334,2412.1,2411.1,3.2078]
[1725232276025,0.41466,2411.5,2410.6,3.2078]
[1725232276423,7.1878,2411.8,2410.6,3.2078]
[1725232276424,0.00622136,2411.3,2410.8,0.00622136]
[1725232276626,0.41475,2411.0,2410.8,0.00622136]
[1725232276927,0.41476,2410.9,2410.8,0.00622136]
[1725232277126,7.85039792,2411.2,2410.8,0.00622136]
[1725232277329,0.41473,2411.1,2410.8,0.00622136]
[1725232277720,3.2078,2411.2,2410.8,0.00622136]
[1725232278227,0.00622136,2411.3,2410.9,0.41474]
[1725232278417,0.00622136,2411.3,2410.8,0.42099136]
[1725232279027,0.00622136,2411.3,2410.8,0.00622136]
[1725232279426,0.00622136,2411.3,2410.8,0.42099136]
[1725232279623,0.00622136,2411.3,2411.1,0.41471]
[1725232279837,0.00622136,2411.3,2411.2,0.41471]
[1725232280127,0.00622136,2411.3,2410.8,7.36122136]
[1725232280128,3.2078,2411.7,2411.6,0.41464]
[1725232280338,3.2078,2412.2,2411.6,0.41464]
[1725232280526,0.41452,2412.3,2411.6,0.41463]
[1725232280718,0.41453,2412.3,2411.4,3.2078]
[1725232281126,0.00622136,2412.1,2411.6,0.41463]
[1725232281330,0.00622136,2412.1,2411.7,0.4146]
[1725232281533,0.00622136,2412.1,2411.4,7.3542]
[1725232281828,0.00622136,2412.1,2411.9,0.41458]
[1725232282031,0.00622136,2412.1,2411.9,4.56018]
[1725232283639,0.00622136,2412.1,2412.0,4.56017]
[1725232283842,3.2078,2413.2,2412.6,0.41445]
[1725232284132,3.2078,2413.2,2412.6,0.41446]
[1725232284523,3.2078,2413.2,2412.4,3.2078]
[1725232284722,0.00622136,2413.0,2412.6,0.42067136]
[1725232285031,0.00622136,2413.0,2412.7,3.2078]
[1725232285330,1.03533,2414.6,2412.7,12.81464637]
[1725232285331,4.39424,2413.9,2412.7,12.81464637]
[1725232285527,4.39424,2413.9,2413.2,0.41435]
[1725232285726,3.2078,2414.1,2413.0,3.2078]
[1725232285924,3.2078,2414.1,2413.7,0.41427]
[1725232286231,4.39413,2414.6,2413.7,3.2078]
[1725232286433,4.39413,2414.6,2413.9,0.00622136]
[1725232286434,0.00622136,2414.4,2413.9,0.00622136]
[1725232286631,0.00622136,2414.4,2414.2,0.41418]
[1725232286827,0.00622136,2414.4,2414.1,0.4142]
[1725232287023,0.00622136,2414.4,2413.9,0.00622136]
[1725232287024,0.41418,2414.3,2413.9,0.00622136]
[1725232287419,0.4142,2414.2,2413.9,0.00622136]
[1725232287823,0.00622136,2414.4,2413.9,0.00622136]
[1725232288025,0.41418,2414.3,2413.9,0.00622136]
[1725232288229,3.62818136,2414.4,2413.9,0.00622136]
[1725232288428,0.00622136,2414.4,2413.9,0.00622136]
[1725232288629,0.42038136,2414.4,2413.9,0.00622136]
[1725232288831,0.42038136,2414.4,2414.1,0.4142]
[1725232288832,0.00622136,2414.4,2414.1,0.4142]
[1725232289031,0.00622136,2414.4,2414.0,0.41422]
[1725232289432,3.21402136,2414.4,2413.9,0.00622136]
[1725232289737,0.41417,2414.3,2413.9,0.00622136]
[1725232290036,0.00622136,2414.4,2413.9,0.42046136]
[1725232290223,3.21402136,2414.4,2413.9,0.00622136]
[1725232290429,0.41422,2414.0,2413.9,0.00622136]
[1725232290934,10.55662,2414.0,2413.9,0.00622136]
[1725232291131,10.55662,2414.0,2413.9,1.339e-05]
[1725232291339,14.97349041,2414.0,2413.9,1.339e-05]
[1725232293837,10.55662,2414.0,2413.9,1.339e-05]
[1725232295141,4.55662,2414.0,2413.9,1.339e-05]
[1725232295738,16.10598108,2414.0,2413.9,1.339e-05]
[1725232297539,17.14155108,2414.0,2413.9,1.339e-05]
[1725232297843,15.33119108,2414.0,2412.6,0.6938]
[1725232298042,0.41445,2412.7,2412.6,0.6938]
[1725232298237,3.2078,2413.1,2412.5,4.2528]
[1725232298439,3.2078,2412.8,2411.9,3.9053]
[1725232298635,0.41446,2412.7,2412.2,0.41452]
[1725232298947,0.41446,2412.7,2412.3,0.41451]
[1725232298948,0.00622136,2412.7,2412.3,0.41451]
[1725232299240,0.00622136,2412.7,2412.5,0.41447]